fUSD/lending_fUSD_20260622
["ID","MTS","AMOUNT","RATE_DAILY","PERIOD"]
[426057740,1782131585000,-537.51,0.0003178,2]
[426057736,1782131585000,-781.2,0.0003178,2]
[426057737,1782131585000,-554.0,0.0003178,2]
[426057738,1782131585000,-500.0,0.0003178,2]
[426057730,1782131585000,-4175.97,0.0003178,2]
[426057726,1782131585000,-500.0,0.0003178,2]
[426057732,1782131585000,-513.61,0.0003178,2]
[426057734,1782131585000,-895.47,0.0003178,2]
[426057731,1782131585000,-500.0,0.0003178,2]
[426057733,1782131585000,-500.0,0.0003178,2]
[426057727,1782131585000,-729.92,0.0003178,2]
[426057728,1782131585000,-2905.9,0.0003178,2]
[426057791,1782131586000,-151.0,0.00031995,2]
[426057786,1782131586000,-350.0,0.00031991,22]
[426057790,1782131586000,-482.43,0.00031995,2]
[426057788,1782131586000,-573.67,0.00031991,2]
[426057787,1782131586000,-573.66,0.00031991,2]
[426057789,1782131586000,-152.67,0.00031995,2]
[426057796,1782131586000,-573.69,0.00031997,2]
[426057801,1782131586000,-50000.0,0.00032,2]
[426057797,1782131586000,-482.43,0.00031997,2]
[426057799,1782131586000,-573.66,0.00031998,2]
[426057798,1782131586000,-644.38,0.00031997,2]
[426057800,1782131586000,-573.66,0.00031998,2]
[426057804,1782131586000,-2470.12,0.00032,2]
[426057784,1782131586000,-185.21,0.00031985,2]
[426057803,1782131586000,-10000.0,0.00032,2]
[426057795,1782131586000,-396.93,0.00031995,2]
[426057785,1782131586000,-644.38,0.0003199,2]
[426057775,1782131586000,-210.49510413,0.00031979,14]
[426057794,1782131586000,-644.33,0.00031995,2]
[426057802,1782131586000,-50000.0,0.00032,3]
[426057769,1782131586000,-156.0,0.00031953,30]
[426057777,1782131586000,-211.68561132,0.00031979,14]
[426057779,1782131586000,-573.62,0.00031985,2]
[426057770,1782131586000,-166.0,0.00031953,30]
[426057780,1782131586000,-151.0,0.00031985,2]
[426057772,1782131586000,-214.18453032,0.00031979,14]
[426057782,1782131586000,-396.29,0.00031985,2]
[426057781,1782131586000,-203.49,0.00031985,2]
[426057773,1782131586000,-213.12306375,0.00031979,14]
[426057778,1782131586000,-185.21,0.00031984,2]
[426057771,1782131586000,-212.48602944,0.00031979,14]
[426057774,1782131586000,-200.75935455,0.00031979,14]
[426057792,1782131586000,-151.0,0.00031995,2]
[426057793,1782131586000,-398.95,0.00031995,2]
[426057783,1782131586000,-396.29,0.00031985,2]
[426057776,1782131586000,-212.87611852,0.00031979,14]
[426057805,1782131586000,-800.0,0.00032,2]
[426057807,1782131586000,-10460.0,0.00032,60]
[426057813,1782131586000,-800.0,0.00032,2]
[426057828,1782131586000,-92956.19381077,0.00032,2]
[426057835,1782131586000,-1000.0,0.00032,2]
[426057833,1782131586000,-1000.0,0.00032,2]
[426057831,1782131586000,-2000.0,0.00032,120]
[426057834,1782131586000,-1000.0,0.00032,2]
[426057830,1782131586000,-4017.60497774,0.00032,14]
[426057832,1782131586000,-1000.0,0.00032,2]
[426057829,1782131586000,-345.5317,0.00032,20]
[426057836,1782131586000,-2066.39,0.00032,32]
[426057839,1782131586000,-168.8378524,0.00032,120]
[426057838,1782131586000,-169.87728653,0.00032,120]
[426057843,1782131586000,-173.14640739,0.00032,120]
[426057842,1782131586000,-204.42373506,0.00032,120]
[426057840,1782131586000,-170.3844487,0.00032,120]
[426057844,1782131586000,-206.26154828,0.00032,120]
[426057806,1782131586000,-800.0,0.00032,2]
[426057837,1782131586000,-10000.0,0.00032,60]
[426057820,1782131586000,-224.51929466,0.00032,14]
[426057841,1782131586000,-365.8898406,0.00032,120]
[426057823,1782131586000,-1593.34281508,0.00032,120]
[426057817,1782131586000,-100000.0,0.00032,7]
[426057821,1782131586000,-467.0,0.00032,5]
[426057845,1782131586000,-311.62966018,0.00032,120]
[426057808,1782131586000,-7306.0,0.00032,3]
[426057810,1782131586000,-800.0,0.00032,2]
[426057809,1782131586000,-800.0,0.00032,2]
[426057816,1782131586000,-1500.0,0.00032,2]
[426057814,1782131586000,-800.0,0.00032,2]
[426057812,1782131586000,-800.0,0.00032,2]
[426057815,1782131586000,-800.0,0.00032,2]
[426057827,1782131586000,-201054.07627619,0.00032,10]
[426057825,1782131586000,-5000.0,0.00032,2]
[426057818,1782131586000,-1769.06231443,0.00032,2]
[426057819,1782131586000,-3626.68884245,0.00032,120]
[426057826,1782131586000,-1000.0,0.00032,120]
[426057822,1782131586000,-150.0,0.00032,120]
[426057811,1782131586000,-800.0,0.00032,2]
[426057824,1782131586000,-1000.0,0.00032,60]
[426057847,1782131587000,-234.75948901,0.00032,120]
[426057849,1782131587000,-1386.96,0.00026559,7]
[426057848,1782131587000,-8091635.01750853,0.00032,120]
[426057846,1782131587000,-956.39857048,0.00032,120]
[426057888,1782131588000,-1180.24,0.00032054,2]
[426057889,1782131588000,-500.0,0.00032054,2]
[426057891,1782131588000,-739.37,0.00032054,2]
[426057886,1782131588000,-500.51,0.00032054,2]
[426057887,1782131588000,-557.46,0.00032054,2]
[426057881,1782131588000,-1276.25,0.00032054,2]
[426057885,1782131588000,-695.0,0.00032054,2]
[426057880,1782131588000,-539.78,0.00032054,2]
[426057890,1782131588000,-661.35,0.00032054,2]
[426057883,1782131588000,-2673.46,0.00032054,2]
[426057884,1782131588000,-755.16,0.00032054,2]
[426057894,1782131588000,-500.0,0.00032054,2]
[426057904,1782131588000,-1137.32,0.00032054,2]
[426057893,1782131588000,-500.0,0.00032054,2]
[426057897,1782131588000,-511.5,0.00032054,2]
[426057898,1782131588000,-586.89,0.00032054,2]
[426057896,1782131588000,-714.12,0.00032054,2]
[426057895,1782131588000,-500.0,0.00032054,2]
[426057899,1782131588000,-500.0,0.00032054,2]
[426057901,1782131588000,-614.75,0.00032054,2]
[426057905,1782131588000,-500.0,0.00032054,2]
[426057908,1782131588000,-515.21,0.00032054,2]
[426057903,1782131588000,-1404.94,0.00032054,2]
[426057902,1782131588000,-500.0,0.00032054,2]
[426057882,1782131588000,-666.68,0.00032054,2]
[426057892,1782131588000,-983.84,0.00032054,2]
[426057878,1782131588000,-947.67,0.00032054,2]
[426057859,1782131588000,-396.29,0.00032,2]
[426057877,1782131588000,-513.94,0.00032054,2]
[426057852,1782131588000,-908364.98249147,0.00032,120]
[426057850,1782131588000,-659.85,0.00028493,2]
[426057851,1782131588000,-587.25,0.00029863,2]
[426057853,1782131588000,-862.86,0.00032,7]
[426057857,1782131588000,-154.7981111,0.00032,15]
[426057855,1782131588000,-138949.40624406,0.00032,30]
[426057858,1782131588000,-700.0,0.00032,2]
[426057856,1782131588000,-2952.87361262,0.00032,30]
[426057907,1782131588000,-688.82,0.00032054,2]
[426057854,1782131588000,-20000.0,0.00032,120]
[426057861,1782131588000,-151.0,0.00032,2]
[426057864,1782131588000,-151.0,0.00032002,2]
[426057860,1782131588000,-396.29,0.00032,2]
[426057863,1782131588000,-151.0,0.00032002,2]
[426057865,1782131588000,-251.0,0.0003201,2]
[426057862,1782131588000,-185.21,0.00032,2]
[426057867,1782131588000,-251.0,0.0003201,2]
[426057866,1782131588000,-251.0,0.0003201,2]
[426057870,1782131588000,-156.0,0.00032018,30]
[426057869,1782131588000,-489.0,0.00032018,30]
[426057868,1782131588000,-251.0,0.0003201,2]
[426057871,1782131588000,-202.0,0.00032018,30]
[426057876,1782131588000,-633.7,0.00032054,2]
[426057874,1782131588000,-680.9,0.00032054,2]
[426057872,1782131588000,-585.84,0.00032054,2]
[426057875,1782131588000,-970.83,0.00032054,2]
[426057873,1782131588000,-345.27,0.00032054,2]
[426057879,1782131588000,-1724.88,0.00032054,2]
[426057906,1782131588000,-500.0,0.00032054,2]
[426057900,1782131588000,-500.0,0.00032054,2]
[426057911,1782131588000,-807.35,0.00032054,2]
[426057939,1782131588000,-500.0,0.00032054,2]
[426057940,1782131588000,-624.51212493,0.00032054,2]
[426057943,1782131588000,-670.91,0.00032054,2]
[426057941,1782131588000,-1046.3,0.00032054,2]
[426057944,1782131588000,-540.55,0.00032054,2]
[426057942,1782131588000,-786.59,0.00032054,2]
[426057948,1782131588000,-666.78,0.00032054,2]
[426057950,1782131588000,-504.09,0.00032054,2]
[426057952,1782131588000,-790.49,0.00032054,2]
[426057951,1782131588000,-834.64,0.00032054,2]
[426057953,1782131588000,-510.33,0.00032054,2]
[426057949,1782131588000,-790.07,0.00032054,2]
[426057938,1782131588000,-936.99,0.00032054,2]
[426057957,1782131588000,-500.0,0.00032054,2]
[426057958,1782131588000,-500.0,0.00032054,2]
[426057956,1782131588000,-900.89,0.00032054,2]
[426057955,1782131588000,-564.32,0.00032054,2]
[426057954,1782131588000,-853.2,0.00032054,2]
[426057961,1782131588000,-702.96,0.00032054,2]
[426057960,1782131588000,-636.73,0.00032054,2]
[426057965,1782131588000,-500.0,0.00032054,2]
[426057962,1782131588000,-992.54,0.00032054,2]
[426057966,1782131588000,-524.23,0.00032054,2]
[426057967,1782131588000,-500.0,0.00032054,2]
[426057909,1782131588000,-562.32,0.00032054,2]
[426057964,1782131588000,-617.25,0.00032054,2]
[426057959,1782131588000,-715.39,0.00032054,2]
[426057937,1782131588000,-1501.08,0.00032054,2]
[426057963,1782131588000,-947.18,0.00032054,2]
[426057934,1782131588000,-608.59,0.00032054,2]
[426057936,1782131588000,-500.0,0.00032054,2]
[426057915,1782131588000,-678.94,0.00032054,2]
[426057914,1782131588000,-528.44,0.00032054,2]
[426057912,1782131588000,-721.3,0.00032054,2]
[426057916,1782131588000,-501.54,0.00032054,2]
[426057913,1782131588000,-500.0,0.00032054,2]
[426057919,1782131588000,-548.72,0.00032054,2]
[426057918,1782131588000,-1181.38,0.00032054,2]
[426057917,1782131588000,-593.04,0.00032054,2]
[426057921,1782131588000,-691.46,0.00032054,2]
[426057920,1782131588000,-500.0,0.00032054,2]
[426057922,1782131588000,-725.12,0.00032054,2]
[426057925,1782131588000,-703.04,0.00032054,2]
[426057910,1782131588000,-500.0,0.00032054,2]
[426057932,1782131588000,-850.25,0.00032054,2]
[426057923,1782131588000,-1255.65,0.00032054,2]
[426057945,1782131588000,-554.01,0.00032054,2]
[426057946,1782131588000,-718.0,0.00032054,2]
[426057935,1782131588000,-523.74,0.00032054,2]
[426057933,1782131588000,-584.59,0.00032054,2]
[426057931,1782131588000,-856.58,0.00032054,2]
[426057947,1782131588000,-500.0,0.00032054,2]
[426057924,1782131588000,-500.0,0.00032054,2]
[426057930,1782131588000,-500.0,0.00032054,2]
[426057927,1782131588000,-617.49,0.00032054,2]
[426057929,1782131588000,-944.23,0.00032054,2]
[426057928,1782131588000,-1040.83,0.00032054,2]
[426057926,1782131588000,-531.43,0.00032054,2]
[426058007,1782131589000,-526.09,0.00032054,2]
[426058004,1782131589000,-274.18506371,0.00032054,2]
[426058003,1782131589000,-700.32,0.00032054,2]
[426057997,1782131589000,-1443.16,0.00032054,2]
[426058002,1782131589000,-510.38,0.00032054,2]
[426057998,1782131589000,-600.74,0.00032054,2]
[426057999,1782131589000,-3639.77,0.00032054,2]
[426058000,1782131589000,-1050.73,0.00032054,2]
[426058006,1782131589000,-945.27,0.00032054,2]
[426058019,1782131589000,-571.32,0.00032054,2]
[426058005,1782131589000,-500.0,0.00032054,2]
[426058012,1782131589000,-694.68,0.00032054,2]
[426058008,1782131589000,-541.49,0.00032054,2]
[426058011,1782131589000,-1014.22,0.00032054,2]
[426058010,1782131589000,-986.53,0.00032054,2]
[426058013,1782131589000,-500.0,0.00032054,2]
[426058016,1782131589000,-928.29,0.00032054,2]
[426058015,1782131589000,-846.46,0.00032054,2]
[426058014,1782131589000,-696.96,0.00032054,2]
[426058017,1782131589000,-500.0,0.00032054,2]
[426058018,1782131589000,-500.0,0.00032054,2]
[426058020,1782131589000,-500.0,0.00032054,2]
[426058021,1782131589000,-700.09,0.00032054,2]
[426058001,1782131589000,-636.07,0.00032054,2]
[426058009,1782131589000,-590.33,0.00032054,2]
[426057996,1782131589000,-784.71,0.00032054,2]
[426057982,1782131589000,-739.67,0.00032054,2]
[426057993,1782131589000,-873.39,0.00032054,2]
[426057971,1782131589000,-858.12,0.00032054,2]
[426057969,1782131589000,-577.94,0.00032054,2]
[426057968,1782131589000,-1250.12,0.00032054,2]
[426057970,1782131589000,-1069.93,0.00032054,2]
[426057972,1782131589000,-521.74,0.00032054,2]
[426057974,1782131589000,-740.41,0.00032054,2]
[426057975,1782131589000,-689.12,0.00032054,2]
[426057978,1782131589000,-879.63,0.00032054,2]
[426057976,1782131589000,-3364.63,0.00032054,2]
[426057977,1782131589000,-176.10226634,0.00032054,2]
[426057979,1782131589000,-500.0,0.00032054,2]
[426057973,1782131589000,-788.02,0.00032054,2]
[426057980,1782131589000,-4029.46,0.00032054,2]
[426057981,1782131589000,-500.0,0.00032054,2]
[426057994,1782131589000,-638.32428338,0.00032054,2]
[426057984,1782131589000,-635.95,0.00032054,2]
[426057983,1782131589000,-869.96,0.00032054,2]
[426057986,1782131589000,-500.0,0.00032054,2]
[426057991,1782131589000,-415.28440968,0.00032054,2]
[426057985,1782131589000,-500.0,0.00032054,2]
[426057988,1782131589000,-439.98029463,0.00032054,2]
[426057992,1782131589000,-940.86,0.00032054,2]
[426057989,1782131589000,-758.34,0.00032054,2]
[426057987,1782131589000,-501.26,0.00032054,2]
[426057990,1782131589000,-500.0,0.00032054,2]
[426057995,1782131589000,-500.0,0.00032054,2]
[426058023,1782131589000,-739.97,0.00032054,2]
[426058043,1782131589000,-519.81,0.00032054,2]
[426058027,1782131589000,-739.97,0.00032054,2]
[426058056,1782131589000,-861.51,0.00032054,2]
[426058057,1782131589000,-804.78,0.00032054,2]
[426058058,1782131589000,-593.89,0.00032054,2]
[426058055,1782131589000,-566.57,0.00032054,2]
[426058059,1782131589000,-2103.48,0.00032054,2]
[426058060,1782131589000,-500.0,0.00032054,2]
[426058061,1782131589000,-500.0,0.00032054,2]
[426058065,1782131589000,-554.28,0.00032054,2]
[426058063,1782131589000,-500.0,0.00032054,2]
[426058064,1782131589000,-359.62,0.00032054,2]
[426058062,1782131589000,-500.0,0.00032054,2]
[426058050,1782131589000,-547.03534634,0.00032054,2]
[426058066,1782131589000,-2746.21,0.00032054,2]
[426058070,1782131589000,-1706.4,0.00032054,2]
[426058068,1782131589000,-500.0,0.00032054,2]
[426058069,1782131589000,-698.47,0.00032054,2]
[426058071,1782131589000,-1155.68,0.00032054,2]
[426058073,1782131589000,-585.33,0.00032054,2]
[426058072,1782131589000,-626.49,0.00032054,2]
[426058076,1782131589000,-1326.5,0.00032054,2]
[426058074,1782131589000,-830.91,0.00032054,2]
[426058075,1782131589000,-699.61,0.00032054,2]
[426058077,1782131589000,-500.0,0.00032054,2]
[426058078,1782131589000,-500.0,0.00032054,2]
[426058067,1782131589000,-785.53,0.00032054,2]
[426058054,1782131589000,-733.03,0.00032054,2]
[426058024,1782131589000,-559.62,0.00032054,2]
[426058052,1782131589000,-500.0,0.00032054,2]
[426058053,1782131589000,-2693.07,0.00032054,2]
[426058025,1782131589000,-500.0,0.00032054,2]
[426058026,1782131589000,-612.97868957,0.00032054,2]
[426058022,1782131589000,-562.61,0.00032054,2]
[426058029,1782131589000,-500.0,0.00032054,2]
[426058028,1782131589000,-3267.88,0.00032054,2]
[426058032,1782131589000,-905.07,0.00032054,2]
[426058031,1782131589000,-534.86924857,0.00032054,2]
[426058033,1782131589000,-816.43,0.00032054,2]
[426058035,1782131589000,-827.96,0.00032054,2]
[426058036,1782131589000,-1352.1,0.00032054,2]
[426058034,1782131589000,-558.4,0.00032054,2]
[426058030,1782131589000,-500.0,0.00032054,2]
[426058038,1782131589000,-411.18,0.00032054,2]
[426058051,1782131589000,-542.05,0.00032054,2]
[426058037,1782131589000,-1369.37,0.00032054,2]
[426058048,1782131589000,-500.0,0.00032054,2]
[426058042,1782131589000,-3183.96,0.00032054,2]
[426058045,1782131589000,-500.0,0.00032054,2]
[426058049,1782131589000,-512.67,0.00032054,2]
[426058046,1782131589000,-596.6,0.00032054,2]
[426058044,1782131589000,-500.0,0.00032054,2]
[426058040,1782131589000,-806.98,0.00032054,2]
[426058039,1782131589000,-1075.88,0.00032054,2]
[426058041,1782131589000,-500.0,0.00032054,2]
[426058047,1782131589000,-626.46,0.00032054,2]
[426058115,1782131590000,-3373.56,0.00032054,2]
[426058118,1782131590000,-713.2,0.00032054,2]
[426058114,1782131590000,-500.0,0.00032054,2]
[426058110,1782131590000,-849.12,0.00032054,2]
[426058117,1782131590000,-570.0,0.00032054,2]
[426058107,1782131590000,-5138.93,0.00032054,2]
[426058108,1782131590000,-847.85,0.00032054,2]
[426058116,1782131590000,-687.7,0.00032054,2]
[426058113,1782131590000,-2000.0,0.00032054,2]
[426058120,1782131590000,-557.86,0.00032054,2]
[426058109,1782131590000,-1204.89,0.00032054,2]
[426058122,1782131590000,-500.0,0.00032054,2]
[426058131,1782131590000,-4227.56,0.00032054,2]
[426058121,1782131590000,-1010.5,0.00032054,2]
[426058119,1782131590000,-685.72,0.00032054,2]
[426058123,1782131590000,-591.59,0.00032054,2]
[426058124,1782131590000,-1413.15,0.00032054,2]
[426058126,1782131590000,-500.0,0.00032054,2]
[426058127,1782131590000,-657.57,0.00032054,2]
[426058129,1782131590000,-500.0,0.00032054,2]
[426058128,1782131590000,-425.39822255,0.00032054,2]
[426058130,1782131590000,-336.32,0.00032054,2]
[426058132,1782131590000,-6843.28,0.00032054,2]
[426058135,1782131590000,-6597.51,0.00032054,2]
[426058112,1782131590000,-8197.77,0.00032054,2]
[426058125,1782131590000,-7121.05,0.00032054,2]
[426058111,1782131590000,-500.0,0.00032054,2]
[426058094,1782131590000,-695.59,0.00032054,2]
[426058103,1782131590000,-4113.41,0.00032054,2]
[426058083,1782131590000,-3549.98,0.00032054,2]
[426058081,1782131590000,-553.22,0.00032054,2]
[426058082,1782131590000,-636.95,0.00032054,2]
[426058079,1782131590000,-604.11,0.00032054,2]
[426058080,1782131590000,-1302.85,0.00032054,2]
[426058084,1782131590000,-500.0,0.00032054,2]
[426058086,1782131590000,-1158.24,0.00032054,2]
[426058085,1782131590000,-784.56,0.00032054,2]
[426058092,1782131590000,-3395.17,0.00032054,2]
[426058091,1782131590000,-1496.54,0.00032054,2]
[426058087,1782131590000,-519.8,0.00032054,2]
[426058088,1782131590000,-567.35,0.00032054,2]
[426058106,1782131590000,-616.23,0.00032054,2]
[426058093,1782131590000,-500.0,0.00032054,2]
[426058090,1782131590000,-1271.92,0.00032054,2]
[426058133,1782131590000,-1169.7,0.00032054,2]
[426058096,1782131590000,-1838.48,0.00032054,2]
[426058095,1782131590000,-1362.17,0.00032054,2]
[426058097,1782131590000,-711.86,0.00032054,2]
[426058098,1782131590000,-504.85,0.00032054,2]
[426058099,1782131590000,-444.54781595,0.00032054,2]
[426058100,1782131590000,-500.0,0.00032054,2]
[426058101,1782131590000,-4341.82,0.00032054,2]
[426058105,1782131590000,-11028.8,0.00032054,2]
[426058104,1782131590000,-2940.44,0.00032054,2]
[426058102,1782131590000,-6186.73,0.00032054,2]
[426058089,1782131590000,-546.18,0.00032054,2]
[426058141,1782131590000,-909.43,0.00032054,2]
[426058140,1782131590000,-658.07,0.00032054,2]
[426058139,1782131590000,-9672.86,0.00032054,2]
[426058169,1782131590000,-537.51,0.00032054,2]
[426058168,1782131590000,-1281.85,0.00032054,2]
[426058172,1782131590000,-879.74,0.00032054,2]
[426058174,1782131590000,-948.85,0.00032054,2]
[426058173,1782131590000,-1013.21,0.00032054,2]
[426058170,1782131590000,-777.53,0.00032054,2]
[426058175,1782131590000,-984.2,0.00032054,2]
[426058134,1782131590000,-4492.09,0.00032054,2]
[426058176,1782131590000,-500.0,0.00032054,2]
[426058178,1782131590000,-1653.7,0.00032055,2]
[426058183,1782131590000,-749.0,0.00032144,2]
[426058181,1782131590000,-1500.0,0.000321,2]
[426058186,1782131590000,-749.0,0.00032144,2]
[426058182,1782131590000,-396.3,0.00032142,2]
[426058179,1782131590000,-1713.24,0.00032067,5]
[426058187,1782131590000,-749.0,0.00032144,2]
[426058180,1782131590000,-150.0,0.00032078,120]
[426058185,1782131590000,-749.0,0.00032144,2]
[426058188,1782131590000,-749.0,0.00032144,2]
[426058184,1782131590000,-749.0,0.00032144,2]
[426058190,1782131590000,-1736.12,0.00032162,2]
[426058192,1782131590000,-1169.21305,0.000322,120]
[426058191,1782131590000,-382.27,0.00032193,2]
[426058193,1782131590000,-1000.0,0.00032206,2]
[426058189,1782131590000,-13217.0,0.00032152,10]
[426058166,1782131590000,-554.0,0.00032054,2]
[426058171,1782131590000,-805.85,0.00032054,2]
[426058177,1782131590000,-500.0,0.00032054,2]
[426058163,1782131590000,-500.0,0.00032054,2]
[426058142,1782131590000,-500.0,0.00032054,2]
[426058137,1782131590000,-7004.08,0.00032054,2]
[426058138,1782131590000,-500.0,0.00032054,2]
[426058167,1782131590000,-500.0,0.00032054,2]
[426058144,1782131590000,-1002.58,0.00032054,2]
[426058143,1782131590000,-500.0,0.00032054,2]
[426058148,1782131590000,-919.77,0.00032054,2]
[426058150,1782131590000,-500.0,0.00032054,2]
[426058153,1782131590000,-500.0,0.00032054,2]
[426058147,1782131590000,-8686.62,0.00032054,2]
[426058151,1782131590000,-775.18,0.00032054,2]
[426058152,1782131590000,-844.33,0.00032054,2]
[426058145,1782131590000,-8639.58,0.00032054,2]
[426058136,1782131590000,-5976.83,0.00032054,2]
[426058146,1782131590000,-4376.06,0.00032054,2]
[426058149,1782131590000,-5625.93,0.00032054,2]
[426058161,1782131590000,-500.0,0.00032054,2]
[426058164,1782131590000,-895.47,0.00032054,2]
[426058158,1782131590000,-2905.9,0.00032054,2]
[426058157,1782131590000,-729.92,0.00032054,2]
[426058162,1782131590000,-513.61,0.00032054,2]
[426058154,1782131590000,-1087.5,0.00032054,2]
[426058155,1782131590000,-912.76,0.00032054,2]
[426058165,1782131590000,-781.2,0.00032054,2]
[426058159,1782131590000,-2044.4,0.00032054,2]
[426058160,1782131590000,-4175.97,0.00032054,2]
[426058156,1782131590000,-500.0,0.00032054,2]
[426058207,1782131591000,-913.31838249,0.000323,2]
[426058213,1782131591000,-947.67,0.00032328,2]
[426058208,1782131591000,-585.84,0.00032328,2]
[426058211,1782131591000,-633.7,0.00032328,2]
[426058206,1782131591000,-253.0,0.000323,120]
[426058209,1782131591000,-680.9,0.00032328,2]
[426058210,1782131591000,-970.83,0.00032328,2]
[426058201,1782131591000,-544.3,0.0003221,5]
[426058204,1782131591000,-1653.7,0.0003226,2]
[426058224,1782131591000,-500.0,0.00032328,2]
[426058203,1782131591000,-717.01809096,0.0003224,2]
[426058202,1782131591000,-785.0,0.00032239,2]
[426058200,1782131591000,-1000.0,0.00032206,2]
[426058198,1782131591000,-1000.0,0.00032206,2]
[426058196,1782131591000,-1000.0,0.00032206,2]
[426058194,1782131591000,-1000.0,0.00032206,2]
[426058197,1782131591000,-1000.0,0.00032206,2]
[426058195,1782131591000,-1162.59269465,0.00032206,2]
[426058205,1782131591000,-177.52405797,0.00032295,7]
[426058199,1782131591000,-1000.0,0.00032206,2]
[426058223,1782131591000,-1180.24,0.00032328,2]
[426058212,1782131591000,-513.94,0.00032328,2]
[426058215,1782131591000,-539.78,0.00032328,2]
[426058233,1782131591000,-586.89,0.00032328,2]
[426058234,1782131591000,-500.0,0.00032328,2]
[426058236,1782131591000,-614.75,0.00032328,2]
[426058237,1782131591000,-500.0,0.00032328,2]
[426058231,1782131591000,-714.12,0.00032328,2]
[426058230,1782131591000,-500.0,0.00032328,2]
[426058227,1782131591000,-983.84,0.00032328,2]
[426058226,1782131591000,-739.37,0.00032328,2]
[426058229,1782131591000,-163.73669406,0.00032328,2]
[426058232,1782131591000,-511.5,0.00032328,2]
[426058225,1782131591000,-661.35,0.00032328,2]
[426058221,1782131591000,-500.51,0.00032328,2]
[426058222,1782131591000,-557.46,0.00032328,2]
[426058220,1782131591000,-695.0,0.00032328,2]
[426058217,1782131591000,-666.68,0.00032328,2]
[426058219,1782131591000,-755.16,0.00032328,2]
[426058214,1782131591000,-1724.88,0.00032328,2]
[426058218,1782131591000,-2673.46,0.00032328,2]
[426058228,1782131591000,-500.0,0.00032328,2]
[426058216,1782131591000,-1276.25,0.00032328,2]
[426058354,1782131592000,-500.0,0.00032328,2]
[426058353,1782131592000,-559.62,0.00032328,2]
[426058351,1782131592000,-562.61,0.00032328,2]
[426058356,1782131592000,-3267.88,0.00032328,2]
[426058348,1782131592000,-571.32,0.00032328,2]
[426058349,1782131592000,-500.0,0.00032328,2]
[426058350,1782131592000,-700.09,0.00032328,2]
[426058342,1782131592000,-500.0,0.00032328,2]
[426058358,1782131592000,-500.0,0.00032328,2]
[426058352,1782131592000,-739.97,0.00032328,2]
[426058357,1782131592000,-500.0,0.00032328,2]
[426058365,1782131592000,-1075.88,0.00032328,2]
[426058369,1782131592000,-519.81,0.00032328,2]
[426058359,1782131592000,-905.07,0.00032328,2]
[426058363,1782131592000,-1352.1,0.00032328,2]
[426058362,1782131592000,-827.96,0.00032328,2]
[426058361,1782131592000,-558.4,0.00032328,2]
[426058368,1782131592000,-3183.96,0.00032328,2]
[426058366,1782131592000,-806.98,0.00032328,2]
[426058364,1782131592000,-1369.37,0.00032328,2]